fUSD/lending_fUSD_20240521
["ID","MTS","AMOUNT","RATE_DAILY","PERIOD"]
[327691427,1716319846883,-500.0,0.00030684,6]
[327691428,1716319846893,-500.0,0.00030684,6]
[327691429,1716319846904,-500.0,0.00030684,6]
[327691430,1716319846916,-745.96,0.00030684,6]
[327691431,1716319846927,-551.99,0.00030684,6]
[327691432,1716319846938,-500.0,0.00030684,6]
[327691433,1716319846951,-500.0,0.00030684,6]
[327691434,1716319846964,-500.0,0.00030684,6]
[327691435,1716319846975,-768.62,0.00030684,6]
[327691436,1716319846987,-500.0,0.00030684,6]
[327691437,1716319847000,-500.0,0.00030684,6]
[327691438,1716319847012,-500.0,0.00030684,6]
[327691439,1716319847024,-540.09,0.00030684,6]
[327691440,1716319847036,-572.71,0.00030684,6]
[327691441,1716319847049,-500.0,0.00030684,6]
[327691442,1716319847060,-500.0,0.00030684,6]
[327691443,1716319847070,-203.31903961,0.00030684,6]
[327691444,1716319847080,-662.66,0.00030684,6]
[327691445,1716319847090,-742.65,0.00030684,6]
[327691446,1716319847100,-500.0,0.00030684,6]
[327691447,1716319847112,-500.0,0.00030684,6]
[327691448,1716319847124,-2612.64,0.00030684,6]
[327691449,1716319847136,-500.0,0.00030684,6]
[327691450,1716319847147,-500.0,0.00030684,6]
[327691451,1716319847158,-743.29,0.00030684,6]
[327691452,1716319847170,-611.46,0.00030684,6]
[327691453,1716319847182,-500.0,0.00030684,6]
[327691454,1716319847195,-500.0,0.00030684,6]
[327691455,1716319847208,-500.0,0.00030684,6]
[327691456,1716319847218,-500.0,0.00030684,6]
[327691457,1716319847228,-500.0,0.00030684,6]
[327691458,1716319847239,-500.0,0.00030684,6]
[327691459,1716319847250,-500.0,0.00030684,6]
[327691460,1716319847262,-593.26,0.00030684,6]
[327691461,1716319847273,-632.71,0.00030684,6]
[327691462,1716319847285,-500.0,0.00030684,6]
[327691463,1716319847295,-500.0,0.00030684,6]
[327691464,1716319847307,-1571.83,0.00030684,6]
[327691465,1716319847316,-704.51,0.00030684,6]
[327691466,1716319847327,-500.0,0.00030684,6]
[327691467,1716319847338,-762.6,0.00030684,6]
[327691468,1716319847348,-605.72,0.00030684,6]
[327691469,1716319847359,-500.0,0.00030684,6]
[327691470,1716319847369,-11742.0,0.00030684,6]
[327691471,1716319847380,-2257.79,0.00030684,6]
[327691472,1716319847391,-908.79,0.00030684,6]
[327691473,1716319847402,-500.0,0.00030684,6]
[327691474,1716319847412,-914.89,0.00030684,6]
[327691475,1716319847423,-1823.72,0.00030684,6]
[327691476,1716319847434,-500.0,0.00030684,6]
[327691477,1716319847445,-500.0,0.00030684,6]
[327691478,1716319847456,-5286.96,0.00030684,6]
[327691479,1716319847466,-722.37,0.00030684,6]
[327691480,1716319847477,-522.15,0.00030684,6]
[327691481,1716319847488,-1041.35,0.00030684,6]
[327691482,1716319847499,-1342.11,0.00030684,6]
[327691483,1716319847510,-865.28,0.00030684,6]
[327691484,1716319847520,-3359.55,0.00030684,6]
[327691485,1716319847531,-500.0,0.00030684,6]
[327691486,1716319847541,-500.0,0.00030684,6]
[327691487,1716319847553,-1087.22,0.00030684,6]
[327691488,1716319847566,-1524.46,0.00030684,6]
[327691489,1716319847578,-500.0,0.00030684,6]
[327691490,1716319847590,-662.9,0.00030684,6]
[327691491,1716319847602,-671.94,0.00030684,6]
[327691492,1716319847614,-500.0,0.00030684,6]
[327691493,1716319847625,-500.0,0.00030684,6]
[327691494,1716319847637,-7591.7,0.00030684,6]
[327691495,1716319847649,-588.79,0.00030684,6]
[327691496,1716319847661,-1591.5,0.00030684,6]
[327691497,1716319847672,-255.71309437,0.00030684,6]
[327691498,1716319847684,-767.13,0.00030684,6]
[327691499,1716319847696,-576.76,0.00030684,6]
[327691500,1716319847707,-1727.44682361,0.00030684,6]
[327691501,1716319848765,-250.0,0.00029738,2]
[327691502,1716319848775,-3306.47,0.0003041,6]
[327691503,1716319848785,-500.0,0.0003041,6]
[327691504,1716319848796,-1188.28317639,0.00030684,6]
[327691505,1716319848810,-1265.45,0.00030684,6]
[327691506,1716319848820,-862.21,0.00030684,6]
[327691507,1716319848830,-1331.67,0.00030684,6]
[327691508,1716319848841,-21685.76,0.00030684,6]
[327691509,1716319848853,-723.33,0.00030684,6]
[327691510,1716319848863,-2643.47,0.00030684,6]
[327691511,1716319848873,-500.0,0.00030684,6]
[327691512,1716319848883,-594.2,0.00030684,6]
[327691513,1716319848894,-500.0,0.00030684,6]
[327691514,1716319848903,-500.0,0.00030684,6]
[327691515,1716319848913,-1150.01,0.00030684,6]
[327691516,1716319848923,-500.0,0.00030684,6]
[327691517,1716319848934,-5180.9,0.00030684,6]
[327691518,1716319848945,-500.0,0.00030684,6]
[327691519,1716319848961,-474.98,0.00030684,6]
[327691520,1716319848971,-500.0,0.00030684,6]
[327691521,1716319848981,-500.0,0.00030684,6]
[327691522,1716319848992,-500.0,0.00030684,6]
[327691523,1716319849005,-859.65,0.00030684,6]
[327691524,1716319849015,-1207.35,0.00030684,6]
[327691525,1716319849025,-500.0,0.00030684,6]
[327691526,1716319849039,-569.35,0.00030684,6]
[327691527,1716319849050,-500.0,0.00030684,6]
[327691528,1716319849063,-500.0,0.00030684,6]
[327691529,1716319849074,-500.0,0.00030684,6]
[327691530,1716319849085,-500.0,0.00030684,6]
[327691531,1716319849096,-3472.29,0.00030684,6]
[327691532,1716319849106,-614.59,0.00030684,6]
[327691533,1716319849117,-500.0,0.00030684,6]
[327691534,1716319849127,-808.72,0.00030684,6]
[327691535,1716319849138,-6643.61,0.00030684,6]
[327691536,1716319849150,-664.34,0.00030684,6]
[327691537,1716319849160,-500.0,0.00030684,6]
[327691538,1716319849171,-974.91,0.00030684,6]
[327691539,1716319849181,-500.0,0.00030684,6]
[327691540,1716319849192,-500.0,0.00030684,6]
[327691541,1716319849203,-500.0,0.00030684,6]
[327691542,1716319849214,-665.19,0.00030684,6]
[327691543,1716319849224,-1102.83,0.00030684,6]
[327691544,1716319849234,-576.8,0.00030684,6]
[327691545,1716319849244,-763.45,0.00030684,6]
[327691546,1716319849254,-1694.45,0.00030684,6]
[327691547,1716319849264,-1228.79,0.00030684,6]
[327691548,1716319849274,-625.26,0.00030684,6]
[327691549,1716319849284,-500.0,0.00030684,6]
[327691550,1716319849295,-500.0,0.00030684,6]
[327691551,1716319849310,-1880.4,0.00030684,6]
[327691552,1716319849319,-948.0,0.00030684,6]
[327691553,1716319849329,-958.6,0.00030684,6]
[327691554,1716319849340,-500.0,0.00030684,6]
[327691555,1716319849350,-500.0,0.00030684,6]
[327691556,1716319849359,-1703.93,0.00030684,6]
[327691557,1716319849370,-500.0,0.00030684,6]
[327691558,1716319849380,-1760.89,0.00030684,6]
[327691559,1716319849391,-707.65,0.00030684,6]
[327691560,1716319849402,-551.46,0.00030684,6]
[327691561,1716319849412,-2277.84,0.00030684,6]
[327691562,1716319849424,-1826.47,0.00030684,6]
[327691563,1716319849828,-500.0,0.00030684,6]
[327691564,1716319849846,-953.69,0.00030684,6]
[327691565,1716319849860,-916.9,0.00030684,6]
[327691566,1716319849870,-1051.53,0.00030684,6]
[327691567,1716319849879,-1845.35,0.00030684,6]
[327691568,1716319849888,-500.0,0.00030684,6]
[327691569,1716319849899,-500.0,0.00030684,6]
[327691570,1716319849908,-756.05,0.00030684,6]
[327691571,1716319849918,-500.0,0.00030684,6]
[327691572,1716319849927,-4282.49,0.00030684,6]
[327691573,1716319849937,-1900.39,0.00030684,6]
[327691574,1716319849947,-1095.6,0.00030684,6]
[327691575,1716319849958,-500.0,0.00030684,6]
[327691576,1716319849969,-500.0,0.00030684,6]
[327691577,1716319849980,-500.0,0.00030684,6]
[327691578,1716319849990,-1245.85,0.00030684,6]
[327691579,1716319850001,-506.71,0.00030684,6]
[327691580,1716319850011,-1581.78,0.00030684,6]
[327691581,1716319850020,-1135.85,0.00030684,6]
[327691582,1716319850029,-3279.55,0.00030684,6]
[327691583,1716319850039,-500.0,0.00030684,6]
[327691584,1716319850050,-500.0,0.00030684,6]
[327691585,1716319850063,-1943.13,0.00030684,6]
[327691586,1716319850072,-913.34,0.00030684,6]
[327691587,1716319850082,-4103.23,0.00030684,6]
[327691588,1716319850091,-500.0,0.00030684,6]
[327691589,1716319850103,-5134.38,0.00030684,6]
[327691590,1716319850112,-500.0,0.00030684,6]
[327691591,1716319850121,-388.78819086,0.00030684,6]
[327691592,1716319850135,-762.51180914,0.00030684,6]
[327691593,1716319850144,-500.0,0.00030684,6]
[327691594,1716319850153,-952.7,0.00030684,6]
[327691595,1716319850162,-12022.45,0.00030684,6]
[327691596,1716319850172,-1816.49,0.00030684,6]
[327691597,1716319850182,-1992.8,0.00030684,6]
[327691598,1716319850191,-500.0,0.00030684,6]
[327691599,1716319850201,-4923.69,0.00030684,6]
[327691600,1716319850210,-3549.72,0.00030684,6]
[327691601,1716319850220,-555.96,0.00030684,6]
[327691602,1716319850230,-500.0,0.00030684,6]
[327691603,1716319850240,-500.0,0.00030684,6]
[327691604,1716319850249,-1954.7,0.00030684,6]
[327691605,1716319850259,-689.1,0.00030684,6]
[327691606,1716319850268,-1006.45,0.00030684,6]
[327691607,1716319850278,-500.0,0.00030684,6]
[327691608,1716319850287,-2252.81,0.00030684,6]
[327691609,1716319850297,-500.0,0.00030684,6]
[327691610,1716319850311,-1215.22,0.00030684,6]
[327691611,1716319850322,-500.0,0.00030684,6]
[327691612,1716319850332,-500.0,0.00030684,6]
[327691613,1716319850343,-500.0,0.00030684,6]
[327691614,1716319850353,-1501.12,0.00030684,6]
[327691615,1716319850363,-500.0,0.00030684,6]
[327691616,1716319850374,-500.0,0.00030684,6]
[327691617,1716319850384,-517.03,0.00030684,6]
[327691618,1716319850394,-1277.99,0.00030684,6]
[327691619,1716319850404,-500.0,0.00030684,6]
[327691620,1716319850415,-500.0,0.00030684,6]
[327691621,1716319850425,-779.5,0.00030684,6]
[327691622,1716319850438,-500.0,0.00030684,6]
[327691623,1716319850450,-500.0,0.00030684,6]
[327691624,1716319850460,-500.0,0.00030684,6]
[327691625,1716319850470,-2804.63,0.00030684,6]
[327691626,1716319850480,-500.0,0.00030684,6]
[327691627,1716319850490,-500.0,0.00030684,6]
[327691628,1716319850500,-376.38517344,0.00030684,6]
[327691629,1716319850509,-500.0,0.00030684,2]
[327691630,1716319850519,-500.0,0.00030684,6]
[327691631,1716319850529,-1003.92,0.00030684,6]
[327691632,1716319850538,-739.07,0.00030684,6]
[327691633,1716319850548,-500.0,0.00030684,6]
[327691634,1716319850562,-31400.69,0.00030684,6]
[327691635,1716319850571,-500.0,0.00030684,6]
[327691636,1716319850581,-500.0,0.00030684,6]
[327691637,1716319850591,-500.0,0.00030684,6]
[327691638,1716319850600,-756.05,0.00030684,6]
[327691639,1716319850609,-500.0,0.00030684,6]
[327691640,1716319850618,-500.0,0.00030684,6]
[327691641,1716319850627,-1719.76,0.00030684,6]
[327691642,1716319850637,-1742.07,0.00030684,6]
[327691643,1716319850646,-1158.21,0.00030684,6]
[327691644,1716319850656,-1608.06,0.00030684,6]
[327691645,1716319850667,-500.0,0.00030684,6]
[327691646,1716319850678,-500.0,0.00030684,6]
[327691647,1716319850689,-500.0,0.00030684,6]
[327691648,1716319850699,-500.0,0.00030684,6]
[327691649,1716319850709,-500.0,0.00030684,6]
[327691650,1716319850719,-500.0,0.00030684,6]
[327691651,1716319850729,-500.0,0.00030684,6]
[327691652,1716319850739,-500.0,0.00030684,6]
[327691653,1716319850750,-3306.47,0.00030684,6]
[327691654,1716319850760,-500.0,0.00030684,6]
[327691655,1716319850770,-700.0,0.000307,11]
[327691656,1716319850781,-1400.0,0.000308,11]
[327691657,1716319850791,-150.0,0.00030849,2]
[327691658,1716319850801,-150.0,0.00030849,2]
[327691659,1716319850816,-150.0,0.00030849,2]
[327691660,1716319850826,-181.31272783,0.00030858,2]
[327691661,1716319850837,-2100.0,0.000309,11]
[327691662,1716319850848,-500.0,0.00030958,6]
[327691663,1716319850858,-500.0,0.00030958,6]
[327691664,1716319850869,-500.0,0.00030958,6]
[327691665,1716319850879,-500.0,0.00030958,6]
[327691666,1716319850890,-500.0,0.00030958,6]
[327691667,1716319850901,-500.0,0.00030958,6]
[327691668,1716319850912,-500.0,0.00030958,6]
[327691669,1716319850923,-500.0,0.00030958,6]
[327691670,1716319850933,-500.0,0.00030958,6]
[327691671,1716319850944,-508.53,0.00030958,6]
[327691672,1716319850959,-500.0,0.00030958,6]
[327691673,1716319850969,-500.0,0.00030958,6]
[327691674,1716319850979,-500.0,0.00030958,6]
[327691675,1716319850991,-500.0,0.00030958,6]
[327691676,1716319851000,-500.0,0.00030958,6]
[327691677,1716319851010,-343.25012905,0.00030958,6]
[327691678,1716319851021,-500.0,0.00030958,6]
[327691679,1716319851034,-500.0,0.00030958,6]
[327691680,1716319851044,-660.7,0.00030958,6]
[327691681,1716319851053,-500.0,0.00030958,6]
[327691682,1716319851072,-500.0,0.00030958,6]
[327691683,1716319851082,-500.0,0.00030958,6]
[327691684,1716319851092,-500.0,0.00030958,6]
[327691685,1716319851102,-500.0,0.00030958,6]
[327691686,1716319851112,-379.25260489,0.00030958,6]
[327691687,1716319851122,-500.0,0.00030958,6]
[327691688,1716319851132,-500.0,0.00030958,6]
[327691689,1716319851141,-500.0,0.00030958,6]
[327691690,1716319851151,-500.0,0.00030958,6]
[327691691,1716319851160,-500.0,0.00030958,6]
[327691692,1716319851170,-500.0,0.00030958,6]
[327691693,1716319851180,-160.89324594,0.00030958,6]
[327691694,1716319851189,-500.0,0.00030958,6]
[327691695,1716319851199,-500.0,0.00030958,6]
[327691696,1716319851209,-500.0,0.00030958,6]
[327691697,1716319851219,-500.0,0.00030958,6]
[327691698,1716319851228,-500.0,0.00030958,6]
[327691699,1716319851238,-500.0,0.00030958,6]
[327691700,1716319851248,-500.0,0.00030958,6]
[327691701,1716319851258,-500.0,0.00030958,6]
[327691702,1716319851267,-500.0,0.00030958,6]
[327691703,1716319851276,-630.8,0.00030958,6]
[327691704,1716319851286,-572.42,0.00030958,6]
[327691705,1716319851296,-500.0,0.00030958,6]
[327691706,1716319851305,-500.0,0.00030958,6]
[327691707,1716319851319,-500.0,0.00030958,6]
[327691708,1716319851328,-500.0,0.00030958,6]
[327691709,1716319851337,-500.0,0.00030958,6]
[327691710,1716319851347,-500.0,0.00030958,6]
[327691711,1716319851355,-500.0,0.00030958,2]
[327691712,1716319851364,-500.0,0.00030958,6]
[327691713,1716319851373,-500.0,0.00030958,6]
[327691714,1716319851382,-500.0,0.00030958,6]
[327691715,1716319851392,-500.0,0.00030958,6]
[327691716,1716319851401,-500.0,0.00030958,6]
[327691717,1716319851410,-500.0,0.00030958,6]
[327691718,1716319851419,-500.0,0.00030958,6]
[327691719,1716319851428,-500.0,0.00030958,6]
[327691720,1716319851438,-500.0,0.00030958,6]
[327691721,1716319851447,-500.0,0.00030958,6]
[327691722,1716319851457,-500.0,0.00030958,6]
[327691723,1716319851466,-500.0,0.00030958,6]
[327691724,1716319851476,-500.0,0.00030958,6]
[327691725,1716319851487,-500.0,0.00030958,6]
[327691726,1716319851496,-500.0,0.00030958,6]
[327691727,1716319851506,-500.0,0.00030958,6]
[327691728,1716319851515,-500.0,0.00030958,6]
[327691729,1716319851525,-500.0,0.00030958,6]
[327691730,1716319851534,-500.0,0.00030958,6]
[327691731,1716319851544,-500.0,0.00030958,6]
[327691732,1716319851554,-500.0,0.00030958,6]
[327691733,1716319851569,-500.0,0.00030958,6]
[327691734,1716319851579,-500.0,0.00030958,6]
[327691735,1716319851589,-500.0,0.00030958,6]
[327691736,1716319851598,-500.0,0.00030958,6]
[327691737,1716319851608,-500.0,0.00030958,6]
[327691738,1716319851617,-500.0,0.00030958,6]
[327691739,1716319851627,-500.0,0.00030958,6]
[327691740,1716319851637,-500.0,0.00030958,6]
[327691741,1716319851646,-500.0,0.00030958,6]
[327691742,1716319851656,-762.2,0.00030958,6]
[327691743,1716319851665,-562.12,0.00030958,6]
[327691744,1716319851675,-500.0,0.00030958,6]
[327691745,1716319851684,-500.0,0.00030958,6]
[327691746,1716319851694,-500.0,0.00030958,6]
[327691747,1716319851703,-523.92,0.00030958,6]
[327691748,1716319851713,-500.0,0.00030958,6]
[327691749,1716319851722,-500.0,0.00030958,6]
[327691750,1716319851731,-500.0,0.00030958,6]
[327691751,1716319851740,-500.0,0.00030958,6]
[327691752,1716319851750,-500.0,0.00030958,6]
[327691753,1716319851759,-500.0,0.00030958,6]
[327691754,1716319851769,-500.0,0.00030958,6]
[327691755,1716319851780,-500.0,0.00030958,6]
[327691756,1716319851789,-502.63,0.00030958,6]
[327691757,1716319851799,-500.0,0.00030958,6]
[327691758,1716319851809,-500.0,0.00030958,6]
[327691759,1716319851821,-500.0,0.00030958,6]
[327691760,1716319851830,-500.0,0.00030958,6]
[327691761,1716319851839,-500.0,0.00030958,6]
[327691762,1716319851848,-500.0,0.00030958,6]
[327691763,1716319851857,-500.0,0.00030958,6]
[327691764,1716319851867,-500.0,0.00030958,6]
[327691765,1716319851876,-566.7,0.00030958,6]
[327691766,1716319851886,-500.0,0.00030958,6]
[327691767,1716319851896,-500.0,0.00030958,6]
[327691768,1716319851906,-500.0,0.00030958,6]
[327691769,1716319851915,-500.0,0.00030958,6]
[327691770,1716319851924,-500.0,0.00030958,6]
[327691771,1716319851934,-500.0,0.00030958,6]
[327691772,1716319851943,-500.0,0.00030958,6]
[327691773,1716319851954,-500.0,0.00030958,6]
[327691774,1716319851964,-641.67,0.00030958,6]
[327691775,1716319851974,-500.0,0.00030958,6]
[327691776,1716319851984,-500.0,0.00030958,6]
[327691777,1716319851994,-592.21,0.00030958,6]
[327691778,1716319852004,-500.0,0.00030958,6]
[327691779,1716319852013,-500.0,0.00030958,6]
[327691780,1716319852024,-500.0,0.00030958,6]
[327691781,1716319852036,-500.0,0.00030958,6]
[327691782,1716319852045,-500.18,0.00030958,6]
[327691783,1716319852056,-500.0,0.00030958,6]
[327691784,1716319852070,-792.17,0.00030958,6]
[327691785,1716319852079,-500.0,0.00030958,6]
[327691786,1716319852089,-873.14,0.00030958,6]
[327691787,1716319852099,-686.96,0.00030958,6]
[327691788,1716319852108,-539.2,0.00030958,6]
[327691789,1716319852118,-813.32,0.00030958,6]
[327691790,1716319852127,-500.0,0.00030958,6]
[327691791,1716319852136,-500.0,0.00030958,6]
[327691792,1716319852146,-500.0,0.00030958,6]
[327691793,1716319852155,-500.0,0.00030958,6]
[327691794,1716319852165,-500.0,0.00030958,6]
[327691795,1716319852174,-500.0,0.00030958,6]
[327691796,1716319852183,-920.21,0.00030958,6]
[327691797,1716319852193,-557.19,0.00030958,6]
[327691798,1716319852202,-500.0,0.00030958,6]
[327691799,1716319852212,-500.0,0.00030958,6]
[327691800,1716319852221,-500.0,0.00030958,6]
[327691801,1716319852231,-671.12,0.00030958,6]
[327691802,1716319852240,-523.42,0.00030958,6]
[327691803,1716319852248,-500.0,0.00030958,6]
[327691804,1716319852258,-500.0,0.00030958,6]
[327691805,1716319852268,-500.0,0.00030958,6]
[327691806,1716319852278,-500.0,0.00030958,6]
[327691807,1716319852287,-745.96,0.00030958,6]
[327691808,1716319852296,-551.99,0.00030958,6]
[327691809,1716319852305,-177.74963785,0.00030958,6]
[327691810,1716319852321,-500.0,0.00030958,6]
[327691811,1716319852331,-500.0,0.00030958,6]
[327691812,1716319852341,-768.62,0.00030958,6]
[327691813,1716319852350,-591.93675755,0.00030958,6]
[327691814,1716319852359,-500.0,0.00030958,6]
[327691815,1716319852368,-500.0,0.00030958,6]
[327691816,1716319852378,-540.09,0.00030958,6]
[327691817,1716319852387,-572.71,0.00030958,6]
[327691818,1716319852396,-500.0,0.00030958,6]
[327691819,1716319852404,-500.0,0.00030958,6]
[327691820,1716319852413,-662.66,0.00030958,6]
[327691821,1716319852422,-742.65,0.00030958,6]
[327691822,1716319852431,-500.0,0.00030958,6]
[327691823,1716319852441,-500.0,0.00030958,6]
[327691824,1716319852450,-2612.64,0.00030958,6]
[327691825,1716319852459,-500.0,0.00030958,6]
[327691826,1716319852468,-500.0,0.00030958,6]
[327691827,1716319852477,-743.29,0.00030958,6]
[327691828,1716319852487,-611.46,0.00030958,6]
[327691829,1716319852497,-500.0,0.00030958,6]
[327691830,1716319852506,-500.0,0.00030958,6]
[327691831,1716319852515,-500.0,0.00030958,6]
[327691832,1716319852525,-500.0,0.00030958,6]
[327691833,1716319852534,-500.0,0.00030958,6]
[327691834,1716319852544,-500.0,0.00030958,6]
[327691835,1716319852554,-500.0,0.00030958,6]
[327691836,1716319852567,-593.26,0.00030958,6]
[327691837,1716319852576,-632.71,0.00030958,6]
[327691838,1716319852586,-500.0,0.00030958,6]
[327691839,1716319852595,-500.0,0.00030958,6]
[327691840,1716319852605,-1571.83,0.00030958,6]
[327691841,1716319852614,-704.51,0.00030958,6]
[327691842,1716319852624,-500.0,0.00030958,6]
[327691843,1716319852634,-605.72,0.00030958,6]
[327691844,1716319852643,-500.0,0.00030958,6]
[327691845,1716319852653,-11742.0,0.00030958,6]
[327691846,1716319852662,-2257.79,0.00030958,6]
[327691847,1716319852671,-908.79,0.00030958,6]
[327691848,1716319852680,-500.0,0.00030958,6]
[327691849,1716319852690,-914.89,0.00030958,6]
[327691850,1716319852700,-1823.72,0.00030958,6]
[327691851,1716319852709,-500.0,0.00030958,6]
[327691852,1716319852719,-500.0,0.00030958,6]
[327691853,1716319852729,-5286.96,0.00030958,6]
[327691854,1716319852738,-722.37,0.00030958,6]
[327691855,1716319852748,-522.15,0.00030958,6]
[327691856,1716319852758,-1041.35,0.00030958,6]
[327691857,1716319852767,-1342.11,0.00030958,6]
[327691858,1716319852776,-865.28,0.00030958,6]
[327691859,1716319852786,-3359.55,0.00030958,6]
[327691860,1716319852796,-500.0,0.00030958,6]
[327691861,1716319852805,-500.0,0.00030958,6]
[327691862,1716319852818,-1087.22,0.00030958,6]
[327691863,1716319852828,-1524.46,0.00030958,6]
[327691864,1716319852838,-500.0,0.00030958,6]
[327691865,1716319852847,-662.9,0.00030958,6]
[327691866,1716319852858,-671.94,0.00030958,6]
[327691867,1716319852867,-500.0,0.00030958,6]
[327691868,1716319852878,-500.0,0.00030958,6]
[327691869,1716319852889,-7591.7,0.00030958,6]
[327691870,1716319852900,-588.79,0.00030958,6]
[327691871,1716319852910,-1591.5,0.00030958,6]
[327691872,1716319852920,-767.13,0.00030958,6]
[327691873,1716319852930,-576.76,0.00030958,6]
[327691874,1716319852940,-2915.73,0.00030958,6]
[327691875,1716319852950,-1265.45,0.00030958,6]
[327691876,1716319852966,-862.21,0.00030958,6]
[327691877,1716319852975,-1331.67,0.00030958,6]
[327691878,1716319852985,-21685.76,0.00030958,6]
[327691879,1716319852995,-723.33,0.00030958,6]
[327691880,1716319853009,-2643.47,0.00030958,6]
[327691881,1716319853019,-500.0,0.00030958,6]
[327691882,1716319853030,-594.2,0.00030958,6]
[327691883,1716319853040,-500.0,0.00030958,6]
[327691884,1716319853050,-500.0,0.00030958,6]
[327691885,1716319853062,-1150.01,0.00030958,6]
[327691886,1716319853071,-500.0,0.00030958,6]
[327691887,1716319853080,-5180.9,0.00030958,6]
[327691888,1716319853090,-500.0,0.00030958,6]
[327691889,1716319853099,-500.0,0.00030958,6]
[327691890,1716319853108,-500.0,0.00030958,6]
[327691891,1716319853118,-500.0,0.00030958,6]
[327691892,1716319853128,-859.65,0.00030958,6]
[327691893,1716319853137,-1207.35,0.00030958,6]
[327691894,1716319853147,-500.0,0.00030958,6]
[327691895,1716319853158,-569.35,0.00030958,6]
[327691896,1716319853168,-500.0,0.00030958,6]
[327691897,1716319853178,-500.0,0.00030958,6]
[327691898,1716319853188,-500.0,0.00030958,6]
[327691899,1716319853198,-500.0,0.00030958,6]
[327691900,1716319853208,-3472.29,0.00030958,6]
[327691901,1716319853219,-614.59,0.00030958,6]
[327691902,1716319853229,-500.0,0.00030958,6]
[327691903,1716319853240,-808.72,0.00030958,6]
[327691904,1716319853249,-6643.61,0.00030958,6]
[327691905,1716319853259,-664.34,0.00030958,6]
[327691906,1716319853268,-500.0,0.00030958,6]
[327691907,1716319853278,-974.91,0.00030958,6]
[327691908,1716319853288,-500.0,0.00030958,6]
[327691909,1716319853297,-500.0,0.00030958,6]
[327691910,1716319853307,-500.0,0.00030958,6]
[327691911,1716319853320,-1102.83,0.00030958,6]
[327691912,1716319853329,-665.19,0.00030958,6]
[327691913,1716319853340,-576.8,0.00030958,6]
[327691914,1716319853351,-763.45,0.00030958,6]
[327691915,1716319853360,-1694.45,0.00030958,6]
[327691916,1716319853370,-1228.79,0.00030958,6]
[327691917,1716319853380,-625.26,0.00030958,6]
[327691918,1716319853390,-500.0,0.00030958,6]
[327691919,1716319853400,-500.0,0.00030958,6]
[327691920,1716319853410,-1880.4,0.00030958,6]
[327691921,1716319853419,-948.0,0.00030958,6]
[327691922,1716319853430,-958.6,0.00030958,6]
[327691923,1716319853439,-500.0,0.00030958,6]
[327691924,1716319853449,-500.0,0.00030958,6]
[327691925,1716319853630,-1703.93,0.00030958,6]
[327691926,1716319853639,-500.0,0.00030958,6]